Cogmind - Beta 9.6 @@@ ROGUE MODE // 2020.08.18 @ 22:30:10 Player: horseplaya Result: Destroyed by G-50 Soldier with Heavy Laser Performance ------------- Evolutions (1) 500 Regions Visited (6) 1200 Robots Destroyed (31) 155 Value Destroyed (814) 814 Prototype IDs (22) 440 Alien Tech Used (0) 0 Bonus (300) 300 TOTAL SCORE: 3409 Bonus ------- Aligned with FarCom 300 Cogmind --------- Core Integrity 0/400 Matter 281/300 Energy 97/100 System Corruption 0% Temperature Cool (107) Movement Walking (136) Ox1 Location -8/Mines Parts ------- > --- POWER (1) -------- (None) > --- PROPULSION (4) --- Light Treads Aluminum Leg Potential Leg Potential Leg > --- UTILITY (2) ------ Humpback > --- WEAPON (2) ------- Particle Gun Heavy Assault Rifle > --- INVENTORY (24) --- Nuclear Core Fission Core Light Fission Core Aluminum Leg Wheel Heat Sink Large Storage Unit Large Storage Unit Large Storage Unit High-capacity Storage Unit High-capacity Storage Unit High-capacity Storage Unit Humpback Humpback Humpback Medium Matter Pod (11) High-capacity Matter Pod (100) Small Laser Particle Gun Peak State ------------ > --- POWER ------------ Light Ion Engine > --- PROPULSION ------- Light Treads Light Treads Potential Leg Potential Leg > --- UTILITY ---------- Humpback > --- WEAPON ----------- Particle Gun Heavy Assault Rifle > --- INVENTORY -------- Nuclear Core Fission Core Light Fission Core Aluminum Leg Aluminum Leg Wheel Heat Sink Large Storage Unit Large Storage Unit Large Storage Unit High-capacity Storage Unit High-capacity Storage Unit High-capacity Storage Unit Humpback Humpback Humpback Medium Matter Pod High-capacity Matter Pod Small Laser Particle Gun [Rating: 32] Favorites ----------- Power Light Ion Engine Engine Light Ion Engine Propulsion Light Treads Treads Light Treads Leg Aluminum Leg Wheel Wheel Utility Large Storage Unit Storage Large Storage Unit Weapon Heavy Assault Rifle Energy Gun Particle Gun Ballistic Gun Heavy Assault Rifle Launcher Grenade Launcher Build | -11 -10 -10 -9 -9 -9 -8 ------- Run | Scr Mat Min Mat Min Exi Min Slots Evolved 2 | . . . 2 . . . Power . | . . . . . . . Propulsion 2 | . . . 2 . . . Utility . | . . . . . . . Weapon . | . . . . . . . Parts Attached 34 | . 8 . 15 6 4 1 Power 4 | . 1 . 1 1 1 . Engine 4 | . 1 . 1 1 1 . Core . | . . . . . . . Reactor . | . . . . . . . Propulsion 14 | . 2 . 6 3 2 1 Treads 5 | . 1 . 3 1 . . Leg 8 | . . . 3 2 2 1 Wheel 1 | . 1 . . . . . Hover . | . . . . . . . Flight . | . . . . . . . Utility 4 | . 3 . . . 1 . Device . | . . . . . . . Storage 4 | . 3 . . . 1 . Processor . | . . . . . . . Hackware . | . . . . . . . Protection . | . . . . . . . Artifact . | . . . . . . . Weapon 12 | . 2 . 8 2 . . Energy Gun 7 | . 2 . 4 1 . . Energy Cannon . | . . . . . . . Ballistic Gun 2 | . . . 2 . . . Ballistic Cannon . | . . . . . . . Launcher 3 | . . . 2 1 . . Special Weapon . | . . . . . . . Impact Weapon . | . . . . . . . Slashing Weapon . | . . . . . . . Piercing Weapon . | . . . . . . . Special Melee Weapon . | . . . . . . . Unidentified Prototypes . | . . . . . . . Parts Lost 15 | . . . 8 5 . 2 Power 4 | . . . 2 1 . 1 Propulsion 6 | . . . 2 3 . 1 Utility . | . . . . . . . Weapon 5 | . . . 4 1 . . Highest Loss Streak 7 | . . . 7 3 . 2 Average Slot Usage (%) 87 | . 95 100 92 95 80 85 Engine 5 | . 14 14 9 8 . 9 Treads 19 | . 14 14 18 21 22 19 Leg 15 | . . . 17 21 22 23 Wheel 3 | . 14 14 2 . . . Storage 18 | . 23 28 22 22 13 11 Energy Gun 14 | . 28 28 6 2 11 11 Ballistic Gun 7 | . . . 8 11 11 11 Launcher 1 | . . . 6 7 . . Naked Turns . | . . . . . . . Heaviest Build 89 | 11 43 43 43 41 89 89 Greatest Support 60 | 20 20 20 30 40 60 60 Greatest Overweight (x) 4 | . 4 4 2 2 4 1 Average Overweight (x) 2 | . 1 2 1 1 2 1 Largest Inventory Capacity 24 | 6 16 16 16 16 24 24 Average Capacity 18 | 6 12 16 16 16 22 24 Most Carried 24 | 6 16 16 16 15 24 23 Average Carried 17 | 6 9 16 12 12 21 22 Final Capacity 24 | 6 16 16 16 16 24 24 Final Carried 23 | 6 16 16 15 12 23 22 Class Distribution -------------------- 49% | Mutant 42% | Hauler-Mutant 8% | Scavenger-Mutant Dominant Class ---------------- Mutant | -10/Materials Mutant | -10/Mines Scavenger-Mutant | -9/Materials Mutant | -9/Mines Hauler-Mutant | -9/Exiles Hauler-Mutant | -8/Mines Resources | -11 -10 -10 -9 -9 -9 -8 ----------- Run | Scr Mat Min Mat Min Exi Min Matter Collected 843 | 200 80 . 113 110 300 40 Remotely . | . . . . . . . Salvage Created 884 | 56 364 44 242 127 . 51 Parts 55 | . 19 9 19 7 . 1 Haulers Intercepted 1 | . . . 1 . . . Recyclers Shooed . | . . . . . . . Parts Field Recycled . | . . . . . . . Retrieved Matter . | . . . . . . . Parts Self-Destructed . | . . . . . . . Prevented . | . . . . . . . Kills | -11 -10 -10 -9 -9 -9 -8 ------- Run | Scr Mat Min Mat Min Exi Min Combat Hostiles Destroyed 29 | . 8 3 11 6 . 1 Guns 16 | . 8 1 2 4 . 1 AOE 13 | . . 2 9 2 . . Classes Destroyed 5 | 1 1 1 2 . . . Hauler 1 | . . . 1 . . . Recycler 1 | 1 . . . . . . Swarmer 12 | . . 3 6 3 . . Grunt 15 | . 8 . 3 3 . 1 Sentry 2 | . . . 2 . . . Best Kill Streak 9 | 1 3 3 9 3 . 1 Combat Bots Only 8 | . 3 3 8 3 . 1 Max Kills in Single Turn 2 | 1 1 2 2 2 . 1 Gunslinging . | . . . . . . . Exploded 2 | . . 2 1 1 . . Melee . | . . . . . . . Uniques/NPCs Destroyed . | . . . . . . . Combat | -11 -10 -10 -9 -9 -9 -8 -------- Run | Scr Mat Min Mat Min Exi Min Damage Taken 1946 | . 83 46 1182 463 . 172 Core 433 | . 17 14 316 47 . 39 Absorbed by Shields . | . . . . . . . Core Remaining (%) 93 | 100 . 87 . . . . Volleys Fired 72 | 2 12 4 32 16 . 6 Largest 2 | 2 2 2 2 2 . 2 Hottest 100 | 100 90 90 90 88 . 88 Shots Fired 120 | 4 24 8 45 27 . 12 Gun 103 | 4 24 8 32 23 . 12 Cannon . | . . . . . . . Launcher 17 | . . . 13 4 . . Special . | . . . . . . . Kinetic 37 | . . . 15 16 . 6 Thermal 26 | 4 . . 9 7 . 6 Explosive 17 | . . . 13 4 . . Electromagnetic 40 | . 24 8 8 . . . Robot Hit Streak 10 | 3 10 3 7 9 . 9 Robot Miss Streak 4 | . 2 4 2 3 . 1 Penetration Max . | . . . . . . . Secondary Targets 4 | . 2 . 1 1 . . Max Gunslinging Chain 1 | . 1 . 1 1 . . Shots Hit Robots 74 | 3 13 4 23 21 . 10 Core Hits 50 | 2 8 3 22 11 . 4 Critical Hits . | . . . . . . . Critical Kills . | . . . . . . . Critical Parts Destroyed . | . . . . . . . Melee Attacks . | . . . . . . . Impact . | . . . . . . . Slashing . | . . . . . . . Piercing . | . . . . . . . Sneak Attacks . | . . . . . . . Combat Hostiles . | . . . . . . . Follow-up Attacks . | . . . . . . . Damage Inflicted 2074 | 37 255 149 798 670 . 165 Guns 1023 | 37 248 54 230 289 . 165 Cannons . | . . . . . . . Explosions 1019 | . . 70 568 381 . . Melee . | . . . . . . . Ramming 32 | . 7 25 . . . . Kinetic 366 | . . . 92 208 . 66 Thermal 426 | 37 . 70 139 81 . 99 Explosive 890 | . . . 509 381 . . Electromagnetic 360 | . 248 54 58 . . . Impact . | . . . . . . . Slashing . | . . . . . . . Piercing . | . . . . . . . Highest Corruption . | . . . . . . . Average Corruption . | . . . . . . . Corruption Purged . | . . . . . . . Overload Shots . | . . . . . . . Overflow Damage 44 | . . . 28 16 . . Projectiles . | . . . . . . . Explosions 44 | . . . 28 16 . . Melee . | . . . . . . . Knockbacks . | . . . . . . . Impact . | . . . . . . . Kinetic . | . . . . . . . Secondary . | . . . . . . . Self-Inflicted Damage 207 | . . . 96 111 . . Shots 8 | . . . 4 4 . . Rammed 6 | . 4 2 . . . . Targets Rammed 6 | . 4 2 . . . . Kicked . | . . . . . . . Crushed . | . . . . . . . Highest Temperature 144 | 58 144 81 114 88 . 98 Average Temperature 43 | 29 43 40 42 41 . 62 Received Heat Transfer 531 | . 42 . 252 156 . 81 Siege Activations . | . . . . . . . Robots Corrupted . | . . . . . . . Combat Hostiles . | . . . . . . . Parts Fried 2 | . 2 . . . . . Impact Corruptions . | . . . . . . . Robots Melted . | . . . . . . . Combat Hostiles . | . . . . . . . Parts Melted . | . . . . . . . Heat Transferred 854 | 111 . 50 286 185 . 222 Parts Sabotaged . | . . . . . . . Parts Stolen . | . . . . . . . Parts Stripped . | . . . . . . . Power Chain Reactions 2 | . . 1 1 . . . Missiles Intercepted . | . . . . . . . Alert | -11 -10 -10 -9 -9 -9 -8 ------- Run | Scr Mat Min Mat Min Exi Min Peak Influence 280 | 5 231 137 280 152 . 35 Average Influence 108 | 3 105 69 182 114 . 5 Maximum Alert Level 1 | . 1 . 1 . . . Low Security (%) 84 | 100 88 100 40 100 . 100 Level 1 15 | . 11 . 59 . . . Level 2 . | . . . . . . . Level 3 . | . . . . . . . Level 4 . | . . . . . . . Level 5 . | . . . . . . . High Security . | . . . . . . . Max Security . | . . . . . . . Squads Dispatched 6 | . 4 . 2 . . . Investigation 3 | . 3 . . . . . Extermination . | . . . . . . . Reinforcement 3 | . 1 . 2 . . . Assault . | . . . . . . . Garrison . | . . . . . . . Intercept . | . . . . . . . Construction Impeded . | . . . . . . . Haulers Reinforced . | . . . . . . . Stealth | -11 -10 -10 -9 -9 -9 -8 --------- Run | Scr Mat Min Mat Min Exi Min Distress Signals 3 | . 3 . . . . . Communications Jammed . | . . . . . . . Distress Signals . | . . . . . . . Times Spotted 55 | . 20 3 17 12 . 3 Peak Tracking Total 6 | . 4 3 6 4 . 3 Tactical Retreats 8 | . 1 . 2 5 . . Traps | -11 -10 -10 -9 -9 -9 -8 ------- Run | Scr Mat Min Mat Min Exi Min Traps Triggered 1 | . 1 . . . . . Indirectly . | . . . . . . . Trap Hack Attempts . | . . . . . . . Triggered . | . . . . . . . Disarmed . | . . . . . . . Reprogrammed . | . . . . . . . Reused . | . . . . . . . Traps Extracted . | . . . . . . . Installed . | . . . . . . . Triggered . | . . . . . . . Machines | -11 -10 -10 -9 -9 -9 -8 ---------- Run | Scr Mat Min Mat Min Exi Min Machines Disabled 6 | . 2 1 3 . . . Max in Single Turn 2 | . 1 1 2 . . . Machines Sabotaged . | . . . . . . . Garrisons Compromised . | . . . . . . . Overloaded Fab Kills . | . . . . . . . Fab Network Shutdowns . | . . . . . . . Hacking | -11 -10 -10 -9 -9 -9 -8 --------- Run | Scr Mat Min Mat Min Exi Min Machines Accessed 11 | . 5 . 2 . 4 . Terminals 6 | . 4 . 2 . . . Fabricators . | . . . . . . . Repair Stations . | . . . . . . . Recycling Units 1 | . 1 . . . . . Scanalyzers . | . . . . . . . Garrison Access . | . . . . . . . Total Hacks 61 | . 13 . 6 . 42 . Successful 50 | . 7 . 1 . 42 . Failed 10 | . 5 . 5 . . . Catastrophic 2 | . . . 2 . . . Database Lockouts 1 | . 1 . . . . . Manual 16 | . 8 . 6 . 2 . Terminals 17 | . 11 . 6 . . . Fabricators . | . . . . . . . Repair Stations . | . . . . . . . Recycling Units 2 | . 2 . . . . . Scanalyzers . | . . . . . . . Garrison Access . | . . . . . . . Terminal Hacks 48 | . 5 . 1 . 42 . Record 41 | . . . . . 41 . Robot Analysis 1 | . 1 . . . . . Branch Access Points 1 | . 1 . . . . . Unreport Threat 1 | . . . 1 . . . Locate Traps 2 | . 2 . . . . . Zone Layout 1 | . 1 . . . . . EX-Prototype ID Bank 1 | . . . . . 1 . Fabricator Hacks . | . . . . . . . Repair Station Hacks . | . . . . . . . Recycling Unit Hacks . | . . . . . . . Scanalyzer . | . . . . . . . Garrison Access Hacks . | . . . . . . . Unauthorized Hacks 2 | . 2 . . . . . Terminals 1 | . 1 . . . . . Assimilate 1 | . 1 . . . . . Fabricators . | . . . . . . . Repair Stations . | . . . . . . . Recycling Units 1 | . 1 . . . . . Tunnel 1 | . 1 . . . . . Scanalyzers . | . . . . . . . Garrison Access . | . . . . . . . Data Cores Recovered . | . . . . . . . Used . | . . . . . . . Hacking Detections 7 | . 5 . 2 . . . Full Trace Events 1 | . 1 . . . . . Feedback Events . | . . . . . . . Feedback Blocked . | . . . . . . . Robot Schematics Acquired . | . . . . . . . Robots Built . | . . . . . . . Matter . | . . . . . . . Time . | . . . . . . . Total Robot Build Rating . | . . . . . . . Part Schematics Acquired . | . . . . . . . Parts Built . | . . . . . . . Matter . | . . . . . . . Time . | . . . . . . . Total Part Build Rating . | . . . . . . . Parts Repaired . | . . . . . . . Time . | . . . . . . . Parts Recycled . | . . . . . . . Recycled Matter . | . . . . . . . Retrieved Matter . | . . . . . . . Retrieved Components . | . . . . . . . Parts Scanalyzed . | . . . . . . . Part Schematics Acquired . | . . . . . . . Parts Damaged . | . . . . . . . Bothacking | -11 -10 -10 -9 -9 -9 -8 ------------ Run | Scr Mat Min Mat Min Exi Min Used RIF Installer . | . . . . . . . Robots Hacked . | . . . . . . . Non-combat . | . . . . . . . Combat . | . . . . . . . Robot Hacks Applied . | . . . . . . . Relay Couplers Released . | . . . . . . . Robots Rewired . | . . . . . . . Allies Hacked . | . . . . . . . Hacks Repelled . | . . . . . . . Allies | -11 -10 -10 -9 -9 -9 -8 -------- Run | Scr Mat Min Mat Min Exi Min Total Allies 1 | . 1 . . . . . Largest Group 1 | . 1 . . . . . Highest-Rated Group 10 | . 10 . . . . . Highest-Rated Ally 10 | . 10 . . . . . Total Orders 1 | . 1 . . . . . GOTO 1 | . 1 . . . . . Ally Attacks . | . . . . . . . Total Damage . | . . . . . . . Kills . | . . . . . . . Allies Corrupted . | . . . . . . . Allies Melted . | . . . . . . . Intel | -11 -10 -10 -9 -9 -9 -8 ------- Run | Scr Mat Min Mat Min Exi Min Robot Analysis Total 1 | . 1 . . . . . Derelict Logs Recovered . | . . . . . . . Drone Launches . | . . . . . . . Drone Recoveries . | . . . . . . . Exploration | -11 -10 -10 -9 -9 -9 -8 ------------- Run | Scr Mat Min Mat Min Exi Min Turns Passed 3360 | 19 530 346 322 303 1755 85 Spaces Moved 1645 | 11 272 190 123 143 863 43 Core . | . . . . . . . Treads 327 | . 79 130 25 32 61 . Legs 1065 | 11 . . 98 111 802 43 Wheels 253 | . 193 60 . . . . Hover . | . . . . . . . Flight . | . . . . . . . Fastest Speed 90 | 120 90 120 150 160 120 130 Average Speed 178 | 120 126 174 180 176 199 130 Slowest Speed 240 | 120 200 200 200 180 240 130 Overloaded Moves . | . . . . . . . Propulsion Burnouts . | . . . . . . . Robots Hopped . | . . . . . . . Cave-ins Triggered . | . . . . . . . Exploration Rate (%) 41 | 2 52 61 18 44 93 18 Regions Visited 6 Branch Regions 4 Pre-discovered Areas 2 | . 1 . . . 1 . Known Exits Taken 1 | . 1 . . . . . Unknown Exits Taken 5 | 1 . 1 1 1 1 . Scrap Searched 2 | . . 1 . . . 1 Spaces Dug 5 | . . . 5 . . . Terrain Destroyed 78 | . . . 47 31 . . Melee . | . . . . . . . Projectile . | . . . . . . . AOE 78 | . . . 47 31 . . Actions | -11 -10 -10 -9 -9 -9 -8 --------- Run | Scr Mat Min Mat Min Exi Min Total 1937 | 12 430 195 176 166 898 60 Wait 132 | . 122 . . . . 10 Move 1639 | 10 271 189 122 142 862 43 Hop . | . . . . . . . Pick Up 40 | . 9 . 5 2 24 . Fast Attach 4 | . 1 . 2 . 1 . Attach 16 | . . . 9 5 1 1 Detach 2 | . . . 2 . . . Swap 14 | . 7 . 4 1 2 . Drop 12 | . 4 . . . 8 . Fire 72 | 2 12 4 32 16 . 6 Melee . | . . . . . . . Ram . | . . . . . . . Kick . | . . . . . . . Crush 6 | . 4 2 . . . . Escape Stasis . | . . . . . . . Rewire . | . . . . . . . Trap . | . . . . . . . Miscellaneous . | . . . . . . . Route ------- -11/Scrapyard -10/Materials (discovered 2 exits: *Mat / *Min) -10/Mines (discovered 2 exits: *Mat x2) -9/Materials -9/Mines -9/Exiles -8/Mines History --------- Turn | Location | Event 8 | -11/Scrapyard | Discovered new exit (range 3) 20 | -11/Scrapyard | Entered Materials 199 | -10/Materials | Discovered new exit (range 8) 204 | -10/Materials | Discovered new exit (range 16) 313 | -10/Materials | Build established: Mutant 390 | -10/Materials | Identified exit to Mines 390 | -10/Materials | Central database locked down 550 | -10/Materials | Entered Mines 787 | -10/Mines | Discovered new exit (range 4) 820 | -10/Mines | Discovered new exit (range 8) 896 | -10/Mines | Entered Materials 896 | -9/Materials | Evolved 2 slots: Propulsion x2 977 | -9/Materials | Core integrity fell below 50% 1001 | -9/Materials | Destroyed 8 combat bots 1003 | -9/Materials | Lost 7 parts (1p2n4w) 1143 | -9/Materials | Discovered new exit (range 16) 1218 | -9/Materials | Entered Mines 1451 | -9/Mines | Core integrity fell below 20% 1502 | -9/Mines | Lost 3 parts (1p1n1w) 1513 | -9/Mines | Deemed a non-threat by the Exiles lab entrance 1514 | -9/Mines | Discovered new exit (range 5) 1521 | -9/Mines | Entered Exiles 1568 | -9/Exiles | Met 8R-AWN 1592 | -9/Exiles | Met EX-HEX 1690 | -9/Exiles | Met EX-BIN 1853 | -9/Exiles | Met EX-DEC 1865 | -9/Exiles | Learned location of Zion (-6) 2131 | -9/Exiles | Discovered new exit (range 12) 2231 | -9/Exiles | Build established: Hauler-Mutant 2367 | -9/Exiles | Visited The Gauntlet 3043 | -9/Exiles | Aligned with FarCom system 3046 | -9/Exiles | Given EX-Vault access code 3101 | -9/Exiles | Opened EX-Vault 3142 | -9/Exiles | Found Potential Leg 3145 | -9/Exiles | Found Potential Leg 3177 | -9/Exiles | Exiles lab attacked by MAIN.C 3276 | -9/Exiles | Left Exiles lab with Potential Leg 3276 | -9/Exiles | Entered Mines 3361 | -8/Mines | Destroyed by G-50 Soldier with Heavy Laser Last Messages --------------- 03220_ EX-BIN: "Not cool, MAIN.C, I don't even have my SDF Cannon ready..." 03259_ EX-HEX exits level. LOCATION=UNKNOWN GOAL=ESCAPE 03276_ Receiving FarCom transmissions... 03277_ GM-J5T: "That was close. Too bad in all the rush we got split up from the others." 03292_ GM-J5T: "Oh no, it's like what happened to the Exiles when they were wandering homeless, only there's no Warlord to save us!" 03304_ GM-J5T destroyed. 03304_ Searching scrap... 03304_ Found 40 Matter. 03304_ Found Sml. Storage Unit. 03304_ Found Hvy. Flail. 03305_ Acquired 40 matter. 03319_ K-01 Serf collects debris. 03345_ G-47 Trooper destroyed. 03347_ Lgt. Treads destroyed. 03351_ Lgt. Ion Engine destroyed. Map ----- +----------------------------------------------------+ | ?????????????????????????????????????? | | ?????????????????????????????????????? | | ?????????????????????????????????????? | | ?????????????????????????????????????? | | ?????????????????????????????????????? | | ?????????????????????????????????????? | | ?????????????????????????????????????? | | ???????????????????????????#####?????? | | ??????????????????????????## #?????? | | ??????????????????????????# ?????? | | ??????????????????????????# ?????? | | ??????????????????????????# #?????? | | ??????????????????????????# ######? | | ??????????????????????????# ## ## | | ???????????????s?s?????????# # | | ???????????????s??#????????## """ | | ??????????????????# ?####???## """ | | ??????????????????# ## ###### """ | | ?????????????????## / =%* | | ?????????????????# ! ### | | ?????????????????## ##### ##?# | | ??????????????????#### #???# ##??? | | ?????????????????????# ##???# #???? | | ?????????????????????# ###????# #???? | | ??????????############ #??????# ???? | | ??????????#!g@ #??????## ???? | | ??????????#g############????????# ??? | | ??????????# ????????????????????? ??? | | ?????????? ?????????????????????? ??? | | ????????? ?????????????????????? ?? | | ???????? ???????????????????????? ?? | | ???????? ???????????????????????? ??? | | ??????? ????????????????????????????? | | ??????# ????????????????????????????? | | ??????# ?????????????????????????????? | | ??????# ?????????????????????????????? | | ??????#??????????????????????????????? | | ?????????????????????????????????????? | | ?????????????????????????????????????? | | ?????????????????????????????????????? | | ?????????????????????????????????????? | | | | | | | | | | | | | | | | | | | +----------------------------------------------------+ Best States ------------- Heat Dissipation 28 Energy Generation 10 Energy Capacity 250 Matter Stores 300 Matter Capacity 300 Sight Range 16 Terrain Scan Density 10 Evasion (%) 42 Recoil Reduction 2 Item Schematics ----------------- None Robot Schematics ------------------ None Fabricated ------------ Nothing Alien Tech Used ----------------- None Achievements -------------- None Challenges ------------ None Game ------ Seed TerrabombIonWings Manual? 0 Play Time 00:21:43 Cumulative 35.3 hours Start 2020.08.18 @ 22:00:01 End 2020.08.18 @ 22:30:10 Sessions 1 Manual Loads 0 Difficulty Rogue Special Mode None Game No. 12 Rogue 7 Adventurer 0 Explorer 5 Win Type - Total 1 Types 1/0/0/0/0/0/0 Lore% 37 Gallery% 46 Achievement% 43 Wizard Run 0 Options --------- ASCII 0 Keyboard 0 Movement Arrows Keybinds 0 Fullscreen 1 Font 36/Smallcaps Map View 76x50 Tactical HUD 1 Map Filters NONE Filters NONE Steam 1 RUN: 6f9ccb5c-7269-46f9-ad45-eb1d1667801d